[Event "MPL-1 Indian Chess Tour 2022"]
[Site "Online"]
[Date "2022.03.27"]
[Round "12.2"]
[White "Erigaisi Arjun"]
[Black "Puranik, Abhimanyu"]
[Result "1-0"]
[ECO "A38"]
[WhiteElo "2633"]
[BlackElo "2618"]
[Annotator "ChessBase"]
[PlyCount "187"]
[EventDate "2022.03.30"]
[EventType "tourn"]
[EventCountry "NET"]
[SourceTitle "playchess.com"]
[Source "ChessBase"]
[SourceQuality "1"]
[TimeControl "5400+30"]

1. Nf3 {[%emt 1:15:40]} Nf6 {[%emt 1:15:40]} 2. c4 {[%emt 0:00:22]} c5 {[%emt 0:00:21]} 3. b3 {[%emt 0:00:22]} g6 {[%emt 0:00:28]} 4. Bb2 {[%emt 0:00:22]} Bg7 {[%emt 0:00:21]} 5. g3 {[%emt 0:00:21]} d6 {[%emt 0:00:28]} 6. Bg2 {[%emt 0:00:22]} e5 {[%emt 0:00:22]} 7. O-O {[%emt 0:00:22]} O-O {[%emt 0:00:21]} 8. Nc3 {[%emt 0:00:21]} Nc6 {[%emt 0:00:21]} 9. d3 {[%emt 0:00:30]} Nh5 {[%emt 0:00:21]} 10. a3 {[%emt 0:00:49]} f5 {[%emt 0:00:48]} 11. b4 {[%emt 0:00:57]} Kh8 {[%emt 0:00:36]} 12. Nd5 {[%emt 0:00:35]} Be6 {[%emt 0:00:48]} 13. bxc5 {[%emt 0:00:54]} dxc5 {[%emt 0:00:21]} 14. Qd2 {[%emt 0:00:21]} Bg8 {[%emt 0:01:22]} 15. Bc3 {[%emt 0:00:42]} Qd6 {[%emt 0:00:38]} 16. Qb2 {[%emt 0:00:29]} b6 {[%emt 0:00:42]} 17. a4 {[%emt 0:00:40]} Rab8 {[%emt 0:00:26]} 18. e3 {[%emt 0:00:33]} Rfe8 {[%emt 0:00:56]} 19. Rae1 {[%emt 0:02:23]} Rf8 {[%emt 0:03:20]} 20. Nd2 {[%emt 0:02:32]} Rbe8 {[%emt 0:02:35]} 21. f4 {[%emt 0:00:25]} exf4 {[%emt 0:00:42]} 22. Nxf4 {[%emt 0:02:25]} Bxc3 {[%emt 0:01:27]} 23. Qxc3+ {[%emt 0:00:20]} Qe5 {[%emt 0:01:07]} 24. Qb3 {[%emt 0:01:23]} Na5 {[%emt 0:01:32]} 25. Qb1 {[%emt 0:01:03]} Nxf4 {[%emt 0:00:21]} 26. gxf4 {[%emt 0:00:20]} Qc3 {[%emt 0:01:21]} 27. Re2 {[%emt 0:03:36]} Re7 {[%emt 0:00:44]} 28. Rc1 {[%emt 0:01:37]} Qf6 {[%emt 0:00:25]} 29. Nf3 {[%emt 0:00:29]} Nc6 {[%emt 0:00:23]} 30. a5 {[%emt 0:00:22]} bxa5 {[%emt 0:01:44]} 31. Kf2 {[%emt 0:01:14]} Rb8 {[%emt 0:00:38]} 32. Qa1 {[%emt 0:00:21]} Qxa1 {[%emt 0:00:22]} 33. Rxa1 {[%emt 0:00:20]} Rbe8 {[%emt 0:01:16]} 34. Bf1 {[%emt 0:01:28]} Kg7 {[%emt 0:01:00]} 35. Ne1 {[%emt 0:00:57]} h6 {[%emt 0:01:26]} 36. h4 {[%emt 0:00:23]} Kf6 {[%emt 0:00:22]} 37. Raa2 {[%emt 0:00:30]} g5 {[%emt 0:00:33]} 38. hxg5+ {[%emt 0:00:23]} hxg5 {[%emt 0:00:20]} 39. Bg2 {[%emt 0:00:39]} Nb4 {[%emt 0:00:49]} 40. fxg5+ {[%emt 0:00:22]} Kxg5 {[%emt 0:00:32]} 41. Rxa5 {[%emt 0:00:20]} Rc7 {[%emt 0:00:58]} 42. Ra3 {[%emt 0:00:54]} Bf7 {[%emt 0:00:30]} 43. Bf3 {[%emt 0:00:39]} Rd8 {[%emt 0:00:28]} 44. Rb2 {[%emt 0:00:25]} f4 {[%emt 0:00:46]} 45. Be4 {[%emt 0:00:36]} fxe3+ {[%emt 0:00:41]} 46. Kxe3 {[%emt 0:00:20]} Kf6 {[%emt 0:00:25]} 47. Ra5 {[%emt 0:00:58]} Ke7 {[%emt 0:00:29]} 48. Nc2 {[%emt 0:00:50]} Nxc2+ {[%emt 0:00:25]} 49. Rxc2 {[%emt 0:00:20]} Rdd7 {[%emt 0:01:10]} 50. Rca2 {[%emt 0:00:25]} Kd8 {[%emt 0:00:25]} 51. Rg2 {[%emt 0:00:30]} Ke7 {[%emt 0:00:46]} 52. Rg5 {[%emt 0:00:30]} Kd6 {[%emt 0:00:27]} 53. Ra6+ {[%emt 0:00:25]} Ke7 {[%emt 0:00:21]} 54. Kf4 {[%emt 0:00:58]} Rd4 {[%emt 0:00:37]} 55. Re5+ {[%emt 0:00:31]} Kd8 {[%emt 0:00:30]} 56. Ke3 {[%emt 0:00:58]} Bxc4 {[%emt 0:00:48]} 57. dxc4 {[%emt 0:00:20]} Rxc4 {[%emt 0:00:21]} 58. Bd5 {[%emt 0:00:40]} Rd4 {[%emt 0:00:29]} 59. Be6 {[%emt 0:00:46]} Rd1 {[%emt 0:00:36]} 60. Kf4 {[%emt 0:00:21]} c4 {[%emt 0:00:27]} 61. Rg5 {[%emt 0:00:33]} c3 {[%emt 0:00:39]} 62. Rg8+ {[%emt 0:00:41]} Ke7 {[%emt 0:00:21]} 63. Rg7+ {[%emt 0:00:20]} Kd8 {[%emt 0:00:22]} 64. Rg8+ {[%emt 0:00:27]} Ke7 {[%emt 0:00:21]} 65. Bb3 {[%emt 0:00:43]} Rf1+ {[%emt 0:01:00]} 66. Ke5 {[%emt 0:00:24]} Re1+ {[%emt 0:00:21]} 67. Kd5 {[%emt 0:00:30]} c2 {[%emt 0:00:42]} 68. Rg7+ {[%emt 0:00:34]} Kd8 {[%emt 0:00:21]} 69. Rxc7 {[%emt 0:00:20]} Kxc7 {[%emt 0:00:21]} 70. Bxc2 {[%emt 0:00:21]} Re7 {[%emt 0:00:30]} 71. Rxa7+ {[%emt 0:00:32]} Kd8 {[%emt 0:00:20]} 72. Ra8+ {[%emt 0:00:21]} Kc7 {[%emt 0:00:24]} 73. Bf5 {[%emt 0:00:21]} Kb7 {[%emt 0:00:34]} 74. Ra1 {[%emt 0:00:34]} Kc7 {[%emt 0:00:24]} 75. Be6 {[%emt 0:00:21]} Kb6 {[%emt 0:00:27]} 76. Kd6 {[%emt 0:00:23]} Rb7 {[%emt 0:00:21]} 77. Bd7 {[%emt 0:00:44]} Rb8 {[%emt 0:00:24]} 78. Ra2 {[%emt 0:00:35]} Rb7 {[%emt 0:00:22]} 79. Bc8 {[%emt 0:00:23]} Rb8 {[%emt 0:00:21]} 80. Rb2+ {[%emt 0:00:22]} Ka7 {[%emt 0:00:22]} 81. Rc2 {[%emt 0:00:20]} Kb6 {[%emt 0:00:22]} 82. Rc5 {[%emt 0:00:36]} Ka7 {[%emt 0:00:31]} 83. Bd7 {[%emt 0:01:07]} Kb6 {[%emt 0:00:28]} 84. Rc6+ {[%emt 0:00:25]} Ka7 {[%emt 0:01:08]} 85. Kc5 {[%emt 0:00:34]} Rb1 {[%emt 0:00:31]} 86. Be6 {[%emt 0:00:21]} Rb8 {[%emt 0:00:27]} 87. Bd5 {[%emt 0:00:28]} Rb1 {[%emt 0:00:38]} 88. Rc7+ {[%emt 0:00:23]} Kb8 {[%emt 0:00:23]} 89. Rg7 {[%emt 0:00:23]} Rc1+ {[%emt 0:00:25]} 90. Kd6 {[%emt 0:00:24]} Rc7 {[%emt 0:00:24]} 91. Rg2 {[%emt 0:01:05]} Rh7 {[%emt 0:00:23]} 92. Rg8+ {[%emt 0:00:33]} Ka7 {[%emt 0:00:22]} 93. Kc5 {[%emt 0:00:22]} Ka6 {[%emt 0:00:53]} 94. Rg2 {[%emt 0:00:23]} 1-0

[Event "MPL-1 Indian Chess Tour 2022"]
[Site "Online"]
[Date "2022.03.27"]
[Round "12.4"]
[White "Harika, Dronavalli"]
[Black "Iniyan, P."]
[Result "1/2-1/2"]
[ECO "A28"]
[WhiteElo "2517"]
[BlackElo "2516"]
[Annotator "ChessBase"]
[PlyCount "95"]
[EventDate "2022.03.30"]
[EventType "tourn"]
[EventCountry "NET"]
[SourceTitle "playchess.com"]
[Source "ChessBase"]
[SourceQuality "1"]
[TimeControl "5400+30"]

1. c4 {[%emt 1:15:40]} e5 {[%emt 1:15:40]} 2. Nc3 {[%emt 0:00:23]} Nc6 {[%emt 0:00:23]} 3. Nf3 {[%emt 0:00:22]} Nf6 {[%emt 0:00:21]} 4. e4 {[%emt 0:00:22]} Bb4 {[%emt 0:00:55]} 5. d3 {[%emt 0:00:29]} d6 {[%emt 0:00:25]} 6. a3 {[%emt 0:00:22]} Bxc3+ {[%emt 0:00:46]} 7. bxc3 {[%emt 0:00:21]} h6 {[%emt 0:00:57]} 8. g3 {[%emt 0:00:21]} Be6 {[%emt 0:00:32]} 9. Bg2 {[%emt 0:00:47]} O-O {[%emt 0:00:38]} 10. O-O {[%emt 0:00:36]} Qc8 {[%emt 0:00:28]} 11. Rb1 {[%emt 0:00:50]} Rb8 {[%emt 0:00:31]} 12. Nh4 {[%emt 0:01:08]} Bh3 {[%emt 0:01:03]} 13. Rb2 {[%emt 0:01:47]} Ne7 {[%emt 0:01:08]} 14. f4 {[%emt 0:00:51]} Bxg2 {[%emt 0:06:23]} 15. Rxg2 {[%emt 0:00:25]} Qg4 {[%emt 0:00:21]} 16. Qe1 {[%emt 0:03:01]} b5 {[%emt 0:00:57]} 17. fxe5 {[%emt 0:01:41]} dxe5 {[%emt 0:00:22]} 18. cxb5 {[%emt 0:00:22]} Rfd8 {[%emt 0:00:50]} 19. Nf3 {[%emt 0:02:48]} Ng6 {[%emt 0:00:21]} 20. d4 {[%emt 0:00:31]} Rxb5 {[%emt 0:01:11]} 21. Qe2 {[%emt 0:01:03]} c6 {[%emt 0:02:21]} 22. c4 {[%emt 0:03:29]} Ra5 {[%emt 0:00:51]} 23. Qe1 {[%emt 0:01:01]} Ra4 {[%emt 0:01:01]} 24. dxe5 {[%emt 0:01:47]} Nd7 {[%emt 0:00:23]} 25. Qf2 {[%emt 0:00:42]} Ndxe5 {[%emt 0:01:34]} 26. Nxe5 {[%emt 0:00:22]} Nxe5 {[%emt 0:00:20]} 27. Bb2 {[%emt 0:00:23]} f6 {[%emt 0:00:21]} 28. Bxe5 {[%emt 0:00:22]} fxe5 {[%emt 0:00:20]} 29. Qf7+ {[%emt 0:01:06]} Kh7 {[%emt 0:00:30]} 30. Rb2 {[%emt 0:00:53]} Rxa3 {[%emt 0:01:29]} 31. Qe7 {[%emt 0:00:37]} Rdd3 {[%emt 0:01:02]} 32. Qxe5 {[%emt 0:00:23]} Rf3 {[%emt 0:00:21]} 33. Rxf3 {[%emt 0:00:41]} Rxf3 {[%emt 0:00:20]} 34. Rf2 {[%emt 0:00:22]} a6 {[%emt 0:01:11]} 35. Kg2 {[%emt 0:00:33]} Rxf2+ {[%emt 0:00:37]} 36. Kxf2 {[%emt 0:00:21]} Qh3 {[%emt 0:00:21]} 37. Kg1 {[%emt 0:00:29]} Qd7 {[%emt 0:00:22]} 38. Qc5 {[%emt 0:00:53]} Qd1+ {[%emt 0:00:48]} 39. Kf2 {[%emt 0:00:22]} Qd2+ {[%emt 0:00:22]} 40. Kf3 {[%emt 0:00:23]} Qd3+ {[%emt 0:00:21]} 41. Kf4 {[%emt 0:00:31]} Qf1+ {[%emt 0:00:21]} 42. Kg4 {[%emt 0:00:29]} Qe2+ {[%emt 0:00:42]} 43. Kf4 {[%emt 0:00:21]} Qd2+ {[%emt 0:00:51]} 44. Kf3 {[%emt 0:00:38]} Qd1+ {[%emt 0:00:31]} 45. Kf2 {[%emt 0:00:30]} Qc2+ {[%emt 0:00:29]} 46. Ke3 {[%emt 0:00:38]} Qc1+ {[%emt 0:00:22]} 47. Kf2 {[%emt 0:00:25]} Qd2+ {[%emt 0:01:05]} 48. Kf3 {[%emt 0:00:21]} 1/2-1/2

[Event "MPL-1 Indian Chess Tour 2022"]
[Site "Online"]
[Date "2022.03.31"]
[Round "12.6"]
[White "Mendonca, Leon Luke"]
[Black "Sadhwani, Raunak"]
[Result "0-1"]
[ECO "A81"]
[WhiteElo "2536"]
[BlackElo "2616"]
[Annotator "ChessBase"]
[PlyCount "92"]
[EventDate "2022.03.30"]
[EventType "tourn"]
[EventCountry "NET"]
[SourceTitle "playchess.com"]
[Source "ChessBase"]
[SourceQuality "1"]
[TimeControl "5400+30"]

1. d4 {[%emt 1:15:40]} f5 {[%emt 1:15:40]} 2. g3 {[%emt 0:00:25]} Nf6 {[%emt 0:00:22]} 3. Bg2 {[%emt 0:00:21]} g6 {[%emt 0:00:20]} 4. c3 {[%emt 0:00:21]} Bg7 {[%emt 0:00:32]} 5. Qb3 {[%emt 0:00:21]} Nc6 {[%emt 0:00:26]} 6. h4 {[%emt 0:00:27]} a5 {[%emt 0:00:45]} 7. a4 {[%emt 0:00:30]} e6 {[%emt 0:00:39]} 8. Nh3 {[%emt 0:00:33]} d5 {[%emt 0:01:04]} 9. Nd2 {[%emt 0:00:53]} e5 {[%emt 0:02:07]} 10. dxe5 {[%emt 0:01:42]} Nxe5 {[%emt 0:00:20]} 11. Nf4 {[%emt 0:00:52]} c6 {[%emt 0:00:42]} 12. h5 {[%emt 0:01:32]} Ne4 {[%emt 0:03:20]} 13. Nxe4 {[%emt 0:07:27]} fxe4 {[%emt 0:00:23]} 14. hxg6 {[%emt 0:00:21]} hxg6 {[%emt 0:01:42]} 15. Rxh8+ {[%emt 0:00:22]} Bxh8 {[%emt 0:00:20]} 16. Bxe4 {[%emt 0:01:27]} Qf6 {[%emt 0:01:10]} 17. Bg2 {[%emt 0:00:54]} Qf7 {[%emt 0:02:08]} 18. Be3 {[%emt 0:02:21]} Nc4 {[%emt 0:00:36]} 19. O-O-O {[%emt 0:01:50]} Bg4 {[%emt 0:02:52]} 20. Nxd5 {[%emt 0:01:10]} Nxe3 {[%emt 0:00:22]} 21. Nc7+ {[%emt 0:00:51]} Kf8 {[%emt 0:00:54]} 22. Qxf7+ {[%emt 0:00:22]} Kxf7 {[%emt 0:00:20]} 23. Nxa8 {[%emt 0:00:25]} Nxd1 {[%emt 0:00:32]} 24. Kxd1 {[%emt 0:00:21]} Bf6 {[%emt 0:01:20]} 25. Kd2 {[%emt 0:00:57]} Bd8 {[%emt 0:00:33]} 26. b4 {[%emt 0:00:30]} Be6 {[%emt 0:00:23]} 27. Kc2 {[%emt 0:00:26]} Ke7 {[%emt 0:01:54]} 28. b5 {[%emt 0:00:54]} cxb5 {[%emt 0:00:39]} 29. axb5 {[%emt 0:00:21]} b6 {[%emt 0:00:20]} 30. f4 {[%emt 0:00:26]} Bc4 {[%emt 0:00:26]} 31. e4 {[%emt 0:00:44]} Bxb5 {[%emt 0:00:21]} 32. e5 {[%emt 0:00:22]} Bc4 {[%emt 0:01:15]} 33. Be4 {[%emt 0:00:34]} Kf7 {[%emt 0:00:21]} 34. Bf3 {[%emt 0:00:38]} b5 {[%emt 0:00:32]} 35. g4 {[%emt 0:00:25]} Ke6 {[%emt 0:01:03]} 36. Be4 {[%emt 0:00:34]} g5 {[%emt 0:01:20]} 37. fxg5 {[%emt 0:00:23]} Kxe5 {[%emt 0:00:21]} 38. Bf3 {[%emt 0:00:36]} Kf4 {[%emt 0:00:29]} 39. Bc6 {[%emt 0:00:32]} Kxg5 {[%emt 0:00:25]} 40. Bd7 {[%emt 0:00:30]} Bd5 {[%emt 0:00:25]} 41. Bxb5 {[%emt 0:00:23]} Bxa8 {[%emt 0:00:22]} 42. Bd7 {[%emt 0:00:25]} Bf3 {[%emt 0:00:22]} 43. Kb3 {[%emt 0:00:25]} Bxg4 {[%emt 0:00:24]} 44. Bc6 {[%emt 0:00:23]} Bd1+ {[%emt 0:00:26]} 45. Kc4 {[%emt 0:00:28]} Be7 {[%emt 0:00:38]} 46. Kd5 {[%emt 0:00:55]} Bf3+ {[%emt 0:00:24]} 0-1

[Event "MPL-1 Indian Chess Tour 2022"]
[Site "Online"]
[Date "2022.03.27"]
[Round "12.8"]
[White "Karthikeyan, Murali"]
[Black "Aryan Chopra"]
[Result "0-1"]
[ECO "B12"]
[WhiteElo "2622"]
[BlackElo "2585"]
[Annotator "ChessBase"]
[PlyCount "74"]
[EventDate "2022.03.30"]
[EventType "tourn"]
[EventCountry "NET"]
[SourceTitle "playchess.com"]
[Source "ChessBase"]
[SourceQuality "1"]
[TimeControl "5400+30"]

1. e4 {[%emt 1:15:40]} c6 {[%emt 1:15:40]} 2. d4 {[%emt 0:00:29]} d5 {[%emt 0:00:22]} 3. e5 {[%emt 0:00:23]} c5 {[%emt 0:00:22]} 4. Nf3 {[%emt 0:00:27]} cxd4 {[%emt 0:00:26]} 5. Nxd4 {[%emt 0:00:20]} Nc6 {[%emt 0:00:21]} 6. Nxc6 {[%emt 0:00:48]} bxc6 {[%emt 0:00:20]} 7. Bd3 {[%emt 0:00:20]} e6 {[%emt 0:00:28]} 8. O-O {[%emt 0:00:27]} Ne7 {[%emt 0:00:22]} 9. Nd2 {[%emt 0:00:27]} a5 {[%emt 0:00:24]} 10. Re1 {[%emt 0:00:47]} Ba6 {[%emt 0:00:26]} 11. c4 {[%emt 0:00:37]} Ng6 {[%emt 0:01:40]} 12. Nf3 {[%emt 0:01:11]} Bb4 {[%emt 0:01:10]} 13. Bd2 {[%emt 0:00:29]} dxc4 {[%emt 0:01:20]} 14. Be4 {[%emt 0:00:36]} O-O {[%emt 0:00:23]} 15. Qc2 {[%emt 0:01:10]} Rb8 {[%emt 0:01:24]} 16. Rad1 {[%emt 0:01:01]} Qb6 {[%emt 0:02:31]} 17. h4 {[%emt 0:00:30]} Rfd8 {[%emt 0:00:32]} 18. h5 {[%emt 0:00:35]} Nf8 {[%emt 0:00:35]} 19. h6 {[%emt 0:01:18]} g6 {[%emt 0:00:22]} 20. Qc1 {[%emt 0:01:07]} Bc5 {[%emt 0:01:15]} 21. Bg5 {[%emt 0:02:47]} Rxd1 {[%emt 0:03:40]} 22. Rxd1 {[%emt 0:00:27]} Qxb2 {[%emt 0:00:21]} 23. Qf4 {[%emt 0:00:33]} Qxf2+ {[%emt 0:00:23]} 24. Kh1 {[%emt 0:01:30]} Rb2 {[%emt 0:00:24]} 25. Rg1 {[%emt 0:00:22]} Nd7 {[%emt 0:00:22]} 26. Bh4 {[%emt 0:03:38]} Qe3 {[%emt 0:02:06]} 27. Qxe3 {[%emt 0:00:24]} Bxe3 {[%emt 0:00:22]} 28. Rd1 {[%emt 0:00:20]} Nf8 {[%emt 0:00:50]} 29. Rd8 {[%emt 0:00:36]} c3 {[%emt 0:01:50]} 30. Bg5 {[%emt 0:03:46]} Bc5 {[%emt 0:01:47]} 31. Nd4 {[%emt 0:01:00]} Bb5 {[%emt 0:01:36]} 32. Nb3 {[%emt 0:02:12]} Bb4 {[%emt 0:00:24]} 33. Kh2 {[%emt 0:00:31]} Re2 {[%emt 0:00:32]} 34. Bf3 {[%emt 0:00:22]} Rxe5 {[%emt 0:00:31]} 35. Bf6 {[%emt 0:00:21]} Rf5 {[%emt 0:00:28]} 36. Bg7 {[%emt 0:00:21]} c2 {[%emt 0:00:58]} 37. Be4 {[%emt 0:00:50]} a4 {[%emt 0:00:32]} 0-1

[Event "MPL-1 Indian Chess Tour 2022"]
[Site "Online"]
[Date "2022.03.27"]
[Round "13.1"]
[White "Aryan Chopra"]
[Black "Sethuraman, S.P."]
[Result "1-0"]
[ECO "B09"]
[WhiteElo "2585"]
[BlackElo "2619"]
[Annotator "ChessBase"]
[PlyCount "71"]
[EventDate "2022.03.30"]
[EventType "tourn"]
[EventCountry "NET"]
[SourceTitle "playchess.com"]
[Source "ChessBase"]
[SourceQuality "1"]
[TimeControl "5400+30"]

1. e4 {[%emt 1:15:40]} g6 {[%emt 1:15:40]} 2. d4 {[%emt 0:00:24]} Bg7 {[%emt 0:00:21]} 3. Nc3 {[%emt 0:00:21]} d6 {[%emt 0:00:21]} 4. f4 {[%emt 0:00:20]} Nf6 {[%emt 0:00:32]} 5. Bd3 {[%emt 0:00:34]} O-O {[%emt 0:00:24]} 6. Nf3 {[%emt 0:00:21]} Nc6 {[%emt 0:00:23]} 7. e5 {[%emt 0:00:55]} dxe5 {[%emt 0:00:43]} 8. fxe5 {[%emt 0:00:29]} Nh5 {[%emt 0:01:27]} 9. Be3 {[%emt 0:00:28]} Bg4 {[%emt 0:00:27]} 10. Be2 {[%emt 0:01:02]} f6 {[%emt 0:00:26]} 11. d5 {[%emt 0:02:00]} Nxe5 {[%emt 0:02:09]} 12. Nxe5 {[%emt 0:00:23]} Bxe2 {[%emt 0:00:22]} 13. Qxe2 {[%emt 0:00:21]} fxe5 {[%emt 0:00:21]} 14. O-O-O {[%emt 0:00:21]} Nf4 {[%emt 0:03:07]} 15. Qc4 {[%emt 0:02:10]} Nxg2 {[%emt 0:05:03]} 16. d6+ {[%emt 0:00:23]} Kh8 {[%emt 0:00:21]} 17. dxc7 {[%emt 0:00:21]} Qc8 {[%emt 0:00:22]} 18. Bg5 {[%emt 0:00:22]} h6 {[%emt 0:02:45]} 19. Rhg1 {[%emt 0:06:41]} hxg5 {[%emt 0:02:45]} 20. Rxg2 {[%emt 0:00:27]} Qf5 {[%emt 0:00:22]} 21. Ne4 {[%emt 0:01:00]} g4 {[%emt 0:01:09]} 22. Kb1 {[%emt 0:01:56]} Rac8 {[%emt 0:00:42]} 23. Rf2 {[%emt 0:01:30]} Rxc7 {[%emt 0:01:05]} 24. Qxc7 {[%emt 0:00:23]} Qxe4 {[%emt 0:00:21]} 25. Rxf8+ {[%emt 0:00:24]} Bxf8 {[%emt 0:00:20]} 26. Rf1 {[%emt 0:00:29]} Bg7 {[%emt 0:00:25]} 27. Qxe7 {[%emt 0:00:32]} Qd4 {[%emt 0:00:50]} 28. Qh4+ {[%emt 0:00:55]} Kg8 {[%emt 0:00:24]} 29. Qf2 {[%emt 0:00:21]} Qd5 {[%emt 0:00:35]} 30. Qxa7 {[%emt 0:01:21]} e4 {[%emt 0:00:26]} 31. Qe3 {[%emt 0:00:22]} Kh7 {[%emt 0:00:57]} 32. Re1 {[%emt 0:00:32]} Qe5 {[%emt 0:00:42]} 33. c3 {[%emt 0:00:21]} Qxh2 {[%emt 0:00:27]} 34. Qxe4 {[%emt 0:00:22]} Qg3 {[%emt 0:00:26]} 35. Rh1+ {[%emt 0:00:30]} Kg8 {[%emt 0:00:27]} 36. Qe6+ {[%emt 0:00:27]} 1-0

[Event "MPL-1 Indian Chess Tour 2022"]
[Site "Online"]
[Date "2022.03.27"]
[Round "13.2"]
[White "Gukesh D"]
[Black "Karthikeyan, Murali"]
[Result "0-1"]
[ECO "D52"]
[WhiteElo "2614"]
[BlackElo "2622"]
[Annotator "ChessBase"]
[PlyCount "82"]
[EventDate "2022.03.30"]
[EventType "tourn"]
[EventCountry "NET"]
[SourceTitle "playchess.com"]
[Source "ChessBase"]
[SourceQuality "1"]
[TimeControl "5400+30"]

1. d4 {[%emt 1:15:40]} Nf6 {[%emt 1:15:40]} 2. c4 {[%emt 0:00:22]} e6 {[%emt 0:00:27]} 3. Nf3 {[%emt 0:01:00]} d5 {[%emt 0:00:24]} 4. Nc3 {[%emt 0:00:22]} c6 {[%emt 0:00:31]} 5. Bg5 {[%emt 0:01:02]} Nbd7 {[%emt 0:00:22]} 6. e3 {[%emt 0:00:23]} Qa5 {[%emt 0:00:21]} 7. Nd2 {[%emt 0:00:36]} dxc4 {[%emt 0:00:22]} 8. Bxf6 {[%emt 0:00:24]} Nxf6 {[%emt 0:00:20]} 9. Nxc4 {[%emt 0:00:21]} Qc7 {[%emt 0:00:21]} 10. Rc1 {[%emt 0:00:36]} Bd6 {[%emt 0:00:30]} 11. f4 {[%emt 0:00:21]} Be7 {[%emt 0:00:27]} 12. Be2 {[%emt 0:00:50]} O-O {[%emt 0:00:31]} 13. O-O {[%emt 0:00:29]} Rd8 {[%emt 0:00:41]} 14. Qc2 {[%emt 0:00:44]} Bd7 {[%emt 0:01:00]} 15. Ne4 {[%emt 0:02:12]} Nxe4 {[%emt 0:01:16]} 16. Qxe4 {[%emt 0:00:21]} c5 {[%emt 0:00:35]} 17. f5 {[%emt 0:03:36]} Qc6 {[%emt 0:07:30]} 18. Qxc6 {[%emt 0:04:51]} Bxc6 {[%emt 0:00:20]} 19. fxe6 {[%emt 0:00:29]} fxe6 {[%emt 0:00:34]} 20. Bg4 {[%emt 0:00:27]} Bd5 {[%emt 0:00:47]} 21. e4 {[%emt 0:00:32]} Bxc4 {[%emt 0:01:09]} 22. Rxc4 {[%emt 0:00:22]} cxd4 {[%emt 0:00:57]} 23. Bxe6+ {[%emt 0:00:22]} Kh8 {[%emt 0:00:21]} 24. Rc7 {[%emt 0:01:43]} Bf6 {[%emt 0:01:40]} 25. Rxb7 {[%emt 0:00:45]} d3 {[%emt 0:04:00]} 26. Rd1 {[%emt 0:00:50]} Bg5 {[%emt 0:00:53]} 27. Kf2 {[%emt 0:02:49]} Rd6 {[%emt 0:00:54]} 28. Bd5 {[%emt 0:01:19]} Rf8+ {[%emt 0:00:26]} 29. Kg3 {[%emt 0:00:39]} Bf4+ {[%emt 0:00:59]} 30. Kh3 {[%emt 0:00:32]} Rh6+ {[%emt 0:00:31]} 31. Kg4 {[%emt 0:00:21]} Rxh2 {[%emt 0:00:45]} 32. Bf7 {[%emt 0:00:39]} Be5 {[%emt 0:00:39]} 33. Kf5 {[%emt 0:00:42]} Bxb2 {[%emt 0:00:35]} 34. Rxd3 {[%emt 0:00:23]} Rxg2 {[%emt 0:00:22]} 35. e5 {[%emt 0:00:35]} g6+ {[%emt 0:00:25]} 36. Ke6 {[%emt 0:00:27]} Re2 {[%emt 0:00:29]} 37. Rd5 {[%emt 0:00:37]} a6 {[%emt 0:00:36]} 38. a4 {[%emt 0:00:32]} Kg7 {[%emt 0:00:29]} 39. Rc5 {[%emt 0:00:33]} Bxe5 {[%emt 0:00:29]} 40. Be8+ {[%emt 0:00:30]} Kh6 {[%emt 0:00:31]} 41. Kd7 {[%emt 0:00:34]} Rxe8 {[%emt 0:00:22]} 0-1

[Event "MPL-1 Indian Chess Tour 2022"]
[Site "Online"]
[Date "2022.03.27"]
[Round "13.4"]
[White "Gupta, Abhijeet"]
[Black "Mendonca, Leon Luke"]
[Result "1-0"]
[ECO "E04"]
[WhiteElo "2628"]
[BlackElo "2536"]
[Annotator "ChessBase"]
[PlyCount "109"]
[EventDate "2022.03.30"]
[EventType "tourn"]
[EventCountry "NET"]
[SourceTitle "playchess.com"]
[Source "ChessBase"]
[SourceQuality "1"]
[TimeControl "5400+30"]

1. d4 {[%emt 1:15:40]} d5 {[%emt 1:15:40]} 2. c4 {[%emt 0:00:24]} e6 {[%emt 0:00:24]} 3. Nf3 {[%emt 0:00:23]} Nf6 {[%emt 0:00:22]} 4. g3 {[%emt 0:00:22]} dxc4 {[%emt 0:00:27]} 5. Bg2 {[%emt 0:00:22]} a6 {[%emt 0:00:24]} 6. O-O {[%emt 0:00:23]} Nc6 {[%emt 0:00:22]} 7. e3 {[%emt 0:00:23]} Bd7 {[%emt 0:00:38]} 8. Qe2 {[%emt 0:00:45]} Bd6 {[%emt 0:00:29]} 9. Rd1 {[%emt 0:01:06]} O-O {[%emt 0:01:35]} 10. Qxc4 {[%emt 0:00:30]} Qe7 {[%emt 0:00:41]} 11. b3 {[%emt 0:00:26]} e5 {[%emt 0:02:09]} 12. Bb2 {[%emt 0:00:23]} e4 {[%emt 0:02:03]} 13. Nfd2 {[%emt 0:00:23]} h5 {[%emt 0:03:25]} 14. Nc3 {[%emt 0:01:42]} b5 {[%emt 0:01:01]} 15. Qf1 {[%emt 0:00:23]} Bf5 {[%emt 0:00:33]} 16. a4 {[%emt 0:00:35]} b4 {[%emt 0:00:33]} 17. Ne2 {[%emt 0:00:22]} Qd7 {[%emt 0:01:12]} 18. Nc4 {[%emt 0:01:41]} Nd5 {[%emt 0:01:11]} 19. Rac1 {[%emt 0:03:19]} Nce7 {[%emt 0:00:58]} 20. f3 {[%emt 0:00:50]} Qe6 {[%emt 0:01:03]} 21. Qf2 {[%emt 0:02:17]} Rae8 {[%emt 0:01:30]} 22. Re1 {[%emt 0:00:23]} Ng6 {[%emt 0:01:43]} 23. fxe4 {[%emt 0:03:05]} Bxe4 {[%emt 0:00:22]} 24. Nf4 {[%emt 0:00:21]} Ngxf4 {[%emt 0:00:51]} 25. exf4 {[%emt 0:00:22]} Qf5 {[%emt 0:00:57]} 26. Ne5 {[%emt 0:00:52]} Bxg2 {[%emt 0:00:22]} 27. Qxg2 {[%emt 0:00:21]} Ne7 {[%emt 0:01:45]} 28. d5 {[%emt 0:01:14]} f6 {[%emt 0:00:34]} 29. Nf3 {[%emt 0:02:46]} Qxd5 {[%emt 0:00:32]} 30. Nd4 {[%emt 0:00:21]} Qxg2+ {[%emt 0:00:56]} 31. Kxg2 {[%emt 0:00:20]} Nd5 {[%emt 0:00:49]} 32. Kf2 {[%emt 0:01:29]} Rxe1 {[%emt 0:00:36]} 33. Kxe1 {[%emt 0:00:20]} Kf7 {[%emt 0:00:25]} 34. Kd2 {[%emt 0:00:32]} Ne7 {[%emt 0:00:41]} 35. Kd3 {[%emt 0:00:31]} h4 {[%emt 0:00:26]} 36. Ne2 {[%emt 0:00:44]} Re8 {[%emt 0:00:33]} 37. Bd4 {[%emt 0:00:38]} Nf5 {[%emt 0:00:31]} 38. Bf2 {[%emt 0:00:24]} Nh6 {[%emt 0:00:30]} 39. gxh4 {[%emt 0:00:37]} Nf5 {[%emt 0:00:26]} 40. Rc6 {[%emt 0:00:53]} Ra8 {[%emt 0:00:27]} 41. Ng3 {[%emt 0:00:36]} Ne7 {[%emt 0:00:31]} 42. Rc4 {[%emt 0:00:21]} Ng6 {[%emt 0:00:34]} 43. Ne2 {[%emt 0:00:40]} Rh8 {[%emt 0:00:35]} 44. Rc6 {[%emt 0:00:29]} Ra8 {[%emt 0:00:30]} 45. Bg3 {[%emt 0:00:22]} Ne7 {[%emt 0:00:23]} 46. Rc4 {[%emt 0:00:20]} Ke6 {[%emt 0:00:35]} 47. Nd4+ {[%emt 0:00:44]} Kd5 {[%emt 0:00:28]} 48. f5 {[%emt 0:00:26]} a5 {[%emt 0:00:38]} 49. Nb5 {[%emt 0:00:45]} Bxg3 {[%emt 0:00:25]} 50. hxg3 {[%emt 0:00:22]} Ke5 {[%emt 0:00:32]} 51. Rc5+ {[%emt 0:00:30]} Nd5 {[%emt 0:00:24]} 52. Rxd5+ {[%emt 0:00:32]} Kxd5 {[%emt 0:00:22]} 53. Nxc7+ {[%emt 0:00:21]} Ke5 {[%emt 0:00:26]} 54. Nxa8 {[%emt 0:00:21]} Kxf5 {[%emt 0:00:24]} 55. Ke3 {[%emt 0:00:21]} 1-0